[Event "ESTCC 65 2019"]
[Site "Mali Losinj"]
[Date "2019.09.19"]
[Round "2.18"]
[White "Nielsen, Jorgen Lovgren"]
[Black "Olesen, Poul Erik Norgaard"]
[Result "1-0"]
[ECO "B06"]
[WhiteElo "2052"]
[BlackElo "1996"]
[Annotator "NA"]
[PlyCount "47"]
[EventDate "2019.09.18"]
[EventType "team-tourn"]
[EventCountry "CRO"]
[SourceTitle "playchess.com"]
[Source "ChessBase"]
[SourceQuality "1"]
[WhiteTeam "Denmark"]
[BlackTeam "Denmark"]
[WhiteTeamCountry "DEN"]
[BlackTeamCountry "DEN"]
[TimeControl "40/5400+30:1800+30"]

1. e4 {[%emt 0:00:30]} g6 {[%emt 0:00:30]} 2. d4 {[%emt 0:00:00]} Bg7 {[%emt 0:00:00]} 3. Nf3 {[%emt 0:01:00]} d6 {[%emt 0:00:00]} 4. Bc4 {[%emt 0:00:30]} Nf6 {[%emt 0:00:30]} 5. Qe2 {[%emt 0:01:30]} c6 {[%emt 0:04:30]} 6. O-O {[%emt 0:01:30]} O-O {[%emt 0:02:30]} 7. e5 {[%emt 0:02:30]} Nd5 {[%emt 0:04:30]} 8. Bg5 {[%emt 0:05:30]} Be6 {[%emt 0:06:30]} 9. Bb3 {[%emt 0:03:30]} h6 {[%emt 0:05:30]} 10. Bd2 {[%emt 0:04:30]} dxe5 {[%emt 0:01:30]} 11. Nxe5 {[%emt 0:01:30]} Nd7 {[%emt 0:01:30]} 12. Nxg6 {[%emt 0:00:30]} Re8 {[%emt 0:04:30]} 13. Ne5 {[%emt 0:20:30]} a5 {[%emt 0:05:30]} 14. c4 {[%emt 0:03:30]} Nc7 {[%emt 0:00:30]} 15. Nc3 {[%emt 0:02:30]} Nb6 {[%emt 0:06:30]} 16. Be3 {[%emt 0:04:30]} Ra6 {[%emt 0:03:30]} 17. Rad1 {[%emt 0:04:30]} Qc8 {[%emt 0:03:30]} 18. Qh5 {[%emt 0:06:30]} a4 {[%emt 0:02:30]} 19. Bc2 {[%emt 0:00:30]} Nxc4 {[%emt 0:05:30]} 20. Bxh6 {[%emt 0:03:30]} Nxe5 {[%emt 0:10:30]} 21. Bxg7 {[%emt 0:01:30]} Ng6 {[%emt 0:01:30]} 22. Bxg6 {[%emt 0:01:30]} Kxg7 {[%emt 0:00:00]} 23. Qh7+ {[%emt 0:00:30]} Kf6 {[%emt 0:00:00]} 24. Ne4# {[%emt 0:00:00]} 1-0

[Event "ESTCC 65 2019"]
[Site "Mali Losinj"]
[Date "2019.09.19"]
[Round "2.19"]
[White "Jorgensen, Arne Bjorn"]
[Black "Nielsen, Preben Lovgren"]
[Result "0-1"]
[ECO "A77"]
[WhiteElo "1996"]
[BlackElo "2007"]
[Annotator "NA"]
[PlyCount "36"]
[EventDate "2019.09.18"]
[EventType "team-tourn"]
[EventCountry "CRO"]
[SourceTitle "playchess.com"]
[Source "ChessBase"]
[SourceQuality "1"]
[WhiteTeam "Denmark"]
[BlackTeam "Denmark"]
[WhiteTeamCountry "DEN"]
[BlackTeamCountry "DEN"]
[TimeControl "40/5400+30:1800+30"]

1. d4 {[%emt 0:00:30]} Nf6 {[%emt 0:00:30]} 2. Nf3 {[%emt 0:00:00]} c5 {[%emt 0:00:00]} 3. d5 {[%emt 0:00:00]} e6 {[%emt 0:00:00]} 4. c4 {[%emt 0:00:30]} exd5 {[%emt 0:00:30]} 5. cxd5 {[%emt 0:00:30]} d6 {[%emt 0:00:30]} 6. Nc3 {[%emt 0:00:00]} g6 {[%emt 0:00:00]} 7. e4 {[%emt 0:00:00]} Bg7 {[%emt 0:00:00]} 8. Be2 {[%emt 0:00:30]} O-O {[%emt 0:00:30]} 9. O-O {[%emt 0:00:30]} Re8 {[%emt 0:00:30]} 10. Nd2 {[%emt 0:01:30]} a6 {[%emt 0:00:30]} 11. a4 {[%emt 0:00:30]} Nbd7 {[%emt 0:01:30]} 12. a5 {[%emt 0:01:30]} b5 {[%emt 0:04:30]} 13. axb6 {[%emt 0:00:30]} Nxb6 {[%emt 0:00:30]} 14. h3 {[%emt 0:02:30]} Qc7 {[%emt 0:04:30]} 15. Re1 {[%emt 0:03:30]} c4 {[%emt 0:03:30]} 16. Bf3 {[%emt 0:11:30]} Nfd7 {[%emt 0:05:30]} 17. Nb5 {[%emt 0:11:30]} axb5 {[%emt 0:01:30]} 18. Rxa8 {[%emt 0:01:30]} Nxa8 {[%emt 0:00:30]} 0-1

[Event "ESTCC 65 2019"]
[Site "Mali Losinj"]
[Date "2019.09.19"]
[Round "2.20"]
[White "Fabrin, Morten"]
[Black "Mortensen, Steen Juul"]
[Result "1-0"]
[ECO "A36"]
[WhiteElo "1998"]
[BlackElo "1892"]
[Annotator "NA"]
[PlyCount "113"]
[EventDate "2019.09.18"]
[EventType "team-tourn"]
[EventCountry "CRO"]
[SourceTitle "playchess.com"]
[Source "ChessBase"]
[SourceQuality "1"]
[WhiteTeam "Denmark"]
[BlackTeam "Denmark"]
[WhiteTeamCountry "DEN"]
[BlackTeamCountry "DEN"]
[TimeControl "40/5400+30:1800+30"]

1. c4 {[%emt 0:00:30]} c5 {[%emt 0:00:30]} 2. Nc3 {[%emt 0:00:00]} Nc6 {[%emt 0:00:30]} 3. g3 {[%emt 0:00:00]} g6 {[%emt 0:00:30]} 4. Bg2 {[%emt 0:00:30]} Bg7 {[%emt 0:00:00]} 5. e3 {[%emt 0:00:30]} e5 {[%emt 0:01:00]} 6. Nge2 {[%emt 0:00:30]} Nge7 {[%emt 0:01:30]} 7. O-O {[%emt 0:00:30]} O-O {[%emt 0:01:30]} 8. Nd5 {[%emt 0:01:30]} d6 {[%emt 0:01:30]} 9. Nec3 {[%emt 0:01:30]} Rb8 {[%emt 0:02:30]} 10. Rb1 {[%emt 0:02:30]} Be6 {[%emt 0:06:30]} 11. a3 {[%emt 0:02:30]} Qd7 {[%emt 0:04:30]} 12. Re1 {[%emt 0:05:30]} b6 {[%emt 0:07:30]} 13. b4 {[%emt 0:01:30]} Bf5 {[%emt 0:15:30]} 14. d3 {[%emt 0:01:30]} Bg4 {[%emt 0:11:30]} 15. Qc2 {[%emt 0:03:30]} Rfc8 {[%emt 0:05:30]} 16. b5 {[%emt 0:01:30]} Na5 {[%emt 0:02:30]} 17. Nxe7+ {[%emt 0:01:30]} Qxe7 {[%emt 0:00:30]} 18. Nd5 {[%emt 0:01:30]} Qf8 {[%emt 0:03:30]} 19. Bd2 {[%emt 0:00:30]} Nb7 {[%emt 0:02:30]} 20. Bc3 {[%emt 0:01:30]} Bd7 {[%emt 0:01:30]} 21. a4 {[%emt 0:01:30]} Nd8 {[%emt 0:00:30]} 22. a5 {[%emt 0:01:30]} Ne6 {[%emt 0:00:30]} 23. Ra1 {[%emt 0:00:30]} Nc7 {[%emt 0:00:30]} 24. axb6 {[%emt 0:01:30]} axb6 {[%emt 0:00:30]} 25. Ra7 {[%emt 0:00:30]} Qd8 {[%emt 0:01:30]} 26. Rea1 {[%emt 0:01:30]} Be6 {[%emt 0:01:30]} 27. Nxc7 {[%emt 0:03:30]} Rxc7 {[%emt 0:00:30]} 28. Qa2 {[%emt 0:03:30]} Bf6 {[%emt 0:03:30]} 29. Qb2 {[%emt 0:02:30]} Qe7 {[%emt 0:01:30]} 30. R7a4 {[%emt 0:03:30]} Re8 {[%emt 0:05:58]} 31. Ra6 {[%emt 0:02:30]} Rb8 {[%emt 0:00:17]} 32. Ra8 {[%emt 0:02:30]} Rcc8 {[%emt 0:05:06]} 33. R1a7 {[%emt 0:02:30]} Qd8 {[%emt 0:00:18]} 34. Rxb8 {[%emt 0:02:30]} Rxb8 {[%emt 0:00:02]} 35. f4 {[%emt 0:01:30]} Bg7 {[%emt 0:04:26]} 36. h3 {[%emt 0:05:30]} f6 {[%emt 0:02:54]} 37. Kh2 {[%emt 0:01:30]} h5 {[%emt 0:05:35]} 38. Qa2 {[%emt 0:02:30]} Kh7 {[%emt 0:00:21]} 39. Bc6 {[%emt 0:01:30]} Kh6 {[%emt 0:00:54]} 40. e4 {[%emt 0:04:30]} Qc8 {[%emt 0:01:53]} 41. Qg2 {[%emt 0:00:30]} Qd8 {[%emt 0:06:16]} 42. Bd2 {[%emt 0:01:30]} Kh7 {[%emt 0:04:30]} 43. g4 {[%emt 0:01:30]} Qf8 {[%emt 0:04:31]} 44. Qg3 {[%emt 0:04:30]} hxg4 {[%emt 0:04:09]} 45. hxg4 {[%emt 0:04:30]} Bf7 {[%emt 0:03:21]} 46. Qh3+ {[%emt 0:01:30]} Kg8 {[%emt 0:00:05]} 47. Kg2 {[%emt 0:02:30]} Bh6 {[%emt 0:03:03]} 48. g5 {[%emt 0:04:30]} fxg5 {[%emt 0:00:36]} 49. fxg5 {[%emt 0:00:00]} Bg7 {[%emt 0:00:08]} 50. Ra1 {[%emt 0:04:00]} Qe7 {[%emt 0:00:29]} 51. Rh1 {[%emt 0:00:30]} Kf8 {[%emt 0:00:16]} 52. Rf1 {[%emt 0:00:30]} Kg8 {[%emt 0:00:13]} 53. Rh1 {[%emt 0:01:30]} Kf8 {[%emt 0:00:05]} 54. Qh7 {[%emt 0:01:30]} Rc8 {[%emt 0:02:14]} 55. Rf1 {[%emt 0:01:30]} Qe6 {[%emt 0:00:35]} 56. Kg3 {[%emt 0:00:30]} Rc7 {[%emt 0:02:35]} 57. Bd5 {[%emt 0:00:30]} 1-0

[Event "ESTCC 65 2019"]
[Site "Mali Losinj"]
[Date "2019.09.19"]
[Round "2.21"]
[White "Singer, Hans"]
[Black "Carlsten, Peter"]
[Result "1/2-1/2"]
[ECO "A89"]
[WhiteElo "2184"]
[BlackElo "1986"]
[Annotator "NA"]
[PlyCount "60"]
[EventDate "2019.09.18"]
[EventType "team-tourn"]
[EventCountry "CRO"]
[SourceTitle "playchess.com"]
[Source "ChessBase"]
[SourceQuality "1"]
[WhiteTeam "Austria"]
[BlackTeam "Sweden"]
[WhiteTeamCountry "AUT"]
[BlackTeamCountry "SWE"]
[TimeControl "40/5400+30:1800+30"]

1. d4 {[%emt 0:00:30]} f5 {[%emt 0:00:30]} 2. Nf3 {[%emt 0:00:00]} Nf6 {[%emt 0:00:30]} 3. g3 {[%emt 0:00:00]} g6 {[%emt 0:00:00]} 4. Bg2 {[%emt 0:00:30]} Bg7 {[%emt 0:00:00]} 5. c4 {[%emt 0:00:00]} O-O {[%emt 0:00:00]} 6. Nc3 {[%emt 0:00:00]} d6 {[%emt 0:00:00]} 7. O-O {[%emt 0:00:30]} Nc6 {[%emt 0:00:30]} 8. d5 {[%emt 0:13:30]} Na5 {[%emt 0:00:00]} 9. Qd3 {[%emt 0:02:30]} e5 {[%emt 0:01:00]} 10. e4 {[%emt 0:05:30]} fxe4 {[%emt 0:04:30]} 11. Nxe4 {[%emt 0:01:30]} Nxe4 {[%emt 0:00:00]} 12. Qxe4 {[%emt 0:00:30]} Bf5 {[%emt 0:00:00]} 13. Qe2 {[%emt 0:03:30]} Bg4 {[%emt 0:03:30]} 14. Qe4 {[%emt 0:05:30]} Bf5 {[%emt 0:01:30]} 15. Qe2 {[%emt 0:00:00]} Bg4 {[%emt 0:00:30]} 16. Qe4 {[%emt 0:00:00]} Bxf3 {[%emt 0:01:30]} 17. Bxf3 {[%emt 0:00:30]} Nxc4 {[%emt 0:00:30]} 18. Bg4 {[%emt 0:00:30]} Nb6 {[%emt 0:00:30]} 19. Be6+ {[%emt 0:00:30]} Kh8 {[%emt 0:00:00]} 20. Be3 {[%emt 0:04:30]} Nd7 {[%emt 0:02:00]} 21. Rac1 {[%emt 0:01:30]} b6 {[%emt 0:05:30]} 22. b4 {[%emt 0:21:30]} a5 {[%emt 0:01:30]} 23. a3 {[%emt 0:00:30]} Ra7 {[%emt 0:04:30]} 24. Rc6 {[%emt 0:09:30]} axb4 {[%emt 0:02:30]} 25. axb4 {[%emt 0:00:30]} Nf6 {[%emt 0:00:30]} 26. Qc2 {[%emt 0:00:30]} Ne8 {[%emt 0:04:30]} 27. h4 {[%emt 0:03:30]} Bf6 {[%emt 0:01:30]} 28. Kg2 {[%emt 0:03:30]} Ng7 {[%emt 0:05:30]} 29. Bg4 {[%emt 0:04:02]} Nf5 {[%emt 0:05:30]} 30. Bxf5 {[%emt 0:00:18]} gxf5 {[%emt 0:00:30]} 1/2-1/2

[Event "ESTCC 65 2019"]
[Site "Mali Losinj"]
[Date "2019.09.19"]
[Round "2.22"]
[White "Ahlstrom, Per"]
[Black "Woeber, Friedrich"]
[Result "1/2-1/2"]
[ECO "A26"]
[WhiteElo "1838"]
[BlackElo "2126"]
[Annotator "NA"]
[PlyCount "66"]
[EventDate "2019.09.18"]
[EventType "team-tourn"]
[EventCountry "CRO"]
[SourceTitle "playchess.com"]
[Source "ChessBase"]
[SourceQuality "1"]
[WhiteTeam "Sweden"]
[BlackTeam "Austria"]
[WhiteTeamCountry "SWE"]
[BlackTeamCountry "AUT"]
[TimeControl "40/5400+30:1800+30"]

1. Nf3 {[%emt 0:00:30]} Nf6 {[%emt 0:00:30]} 2. g3 {[%emt 0:00:00]} g6 {[%emt 0:01:30]} 3. Bg2 {[%emt 0:00:00]} Bg7 {[%emt 0:00:30]} 4. O-O {[%emt 0:01:30]} d6 {[%emt 0:00:30]} 5. c4 {[%emt 0:05:30]} e5 {[%emt 0:01:30]} 6. Nc3 {[%emt 0:00:30]} O-O {[%emt 0:00:30]} 7. d3 {[%emt 0:01:30]} Nc6 {[%emt 0:00:30]} 8. Rb1 {[%emt 0:06:30]} a5 {[%emt 0:02:30]} 9. a3 {[%emt 0:06:30]} Nd4 {[%emt 0:05:30]} 10. e3 {[%emt 0:11:30]} Nxf3+ {[%emt 0:00:30]} 11. Bxf3 {[%emt 0:00:30]} c6 {[%emt 0:00:30]} 12. e4 {[%emt 0:02:30]} Bh3 {[%emt 0:05:30]} 13. Re1 {[%emt 0:05:30]} Nd7 {[%emt 0:02:30]} 14. Bg4 {[%emt 0:05:30]} Bxg4 {[%emt 0:01:30]} 15. Qxg4 {[%emt 0:00:30]} Nc5 {[%emt 0:00:00]} 16. Qe2 {[%emt 0:11:30]} f5 {[%emt 0:02:00]} 17. f3 {[%emt 0:01:30]} f4 {[%emt 0:06:30]} 18. g4 {[%emt 0:03:30]} h5 {[%emt 0:10:30]} 19. gxh5 {[%emt 0:00:00]} gxh5 {[%emt 0:04:30]} 20. Kh1 {[%emt 0:05:00]} Kh7 {[%emt 0:02:30]} 21. Bd2 {[%emt 0:03:30]} Rg8 {[%emt 0:01:30]} 22. Rg1 {[%emt 0:01:30]} Bh6 {[%emt 0:01:30]} 23. Rxg8 {[%emt 0:03:30]} Qxg8 {[%emt 0:00:30]} 24. Rg1 {[%emt 0:01:30]} Qf7 {[%emt 0:01:30]} 25. Be1 {[%emt 0:02:30]} Rg8 {[%emt 0:02:30]} 26. Rxg8 {[%emt 0:01:10]} Qxg8 {[%emt 0:00:30]} 27. Bf2 {[%emt 0:02:42]} Nd7 {[%emt 0:07:30]} 28. b4 {[%emt 0:03:21]} axb4 {[%emt 0:00:30]} 29. axb4 {[%emt 0:00:06]} Bg5 {[%emt 0:03:30]} 30. b5 {[%emt 0:05:56]} Qa8 {[%emt 0:01:30]} 31. Qa2 {[%emt 0:00:15]} Qxa2 {[%emt 0:01:30]} 32. Nxa2 {[%emt 0:00:04]} c5 {[%emt 0:00:30]} 33. Nc3 {[%emt 0:00:30]} Nb6 {[%emt 0:01:30]} 1/2-1/2

[Event "ESTCC 65 2019"]
[Site "Mali Losinj"]
[Date "2019.09.19"]
[Round "2.23"]
[White "Titz, Heimo"]
[Black "Dalling, Peter"]
[Result "1/2-1/2"]
[ECO "A21"]
[WhiteElo "1971"]
[BlackElo "1824"]
[Annotator "NA"]
[PlyCount "173"]
[EventDate "2019.09.18"]
[EventType "team-tourn"]
[EventCountry "CRO"]
[SourceTitle "playchess.com"]
[Source "ChessBase"]
[SourceQuality "1"]
[WhiteTeam "Austria"]
[BlackTeam "Sweden"]
[WhiteTeamCountry "AUT"]
[BlackTeamCountry "SWE"]
[TimeControl "40/5400+30:1800+30"]

1. c4 {[%emt 0:00:30]} e5 {[%emt 0:00:30]} 2. Nc3 {[%emt 0:00:00]} Bb4 {[%emt 0:00:00]} 3. Qb3 {[%emt 0:00:00]} Nc6 {[%emt 0:03:00]} 4. e3 {[%emt 0:03:30]} Nf6 {[%emt 0:01:30]} 5. Nge2 {[%emt 0:00:30]} O-O {[%emt 0:01:30]} 6. a3 {[%emt 0:00:30]} Be7 {[%emt 0:01:30]} 7. Ng3 {[%emt 0:00:30]} d6 {[%emt 0:00:30]} 8. Bd3 {[%emt 0:00:30]} Rb8 {[%emt 0:03:30]} 9. Qc2 {[%emt 0:01:30]} h6 {[%emt 0:01:30]} 10. b4 {[%emt 0:00:30]} Be6 {[%emt 0:03:30]} 11. Bb2 {[%emt 0:01:30]} Qd7 {[%emt 0:00:30]} 12. O-O {[%emt 0:02:30]} Rfd8 {[%emt 0:04:30]} 13. Rfd1 {[%emt 0:14:30]} Bg4 {[%emt 0:02:30]} 14. f3 {[%emt 0:01:30]} Be6 {[%emt 0:00:30]} 15. Rac1 {[%emt 0:02:30]} Rbc8 {[%emt 0:04:30]} 16. Nge4 {[%emt 0:09:30]} d5 {[%emt 0:05:30]} 17. Nxf6+ {[%emt 0:01:30]} Bxf6 {[%emt 0:03:30]} 18. cxd5 {[%emt 0:00:30]} Bxd5 {[%emt 0:00:30]} 19. Nxd5 {[%emt 0:00:00]} Qxd5 {[%emt 0:01:30]} 20. Bf5 {[%emt 0:00:00]} Rb8 {[%emt 0:00:30]} 21. Be4 {[%emt 0:01:30]} Qe6 {[%emt 0:00:30]} 22. Qa4 {[%emt 0:04:30]} Rd6 {[%emt 0:04:30]} 23. Bxc6 {[%emt 0:02:30]} bxc6 {[%emt 0:00:00]} 24. Qxa7 {[%emt 0:01:30]} Rbd8 {[%emt 0:00:00]} 25. Bc3 {[%emt 0:05:30]} Bg5 {[%emt 0:01:30]} 26. Re1 {[%emt 0:03:30]} R8d7 {[%emt 0:05:30]} 27. f4 {[%emt 0:01:30]} Bf6 {[%emt 0:00:30]} 28. fxe5 {[%emt 0:00:30]} Bxe5 {[%emt 0:00:30]} 29. Bxe5 {[%emt 0:00:30]} Qxe5 {[%emt 0:00:00]} 30. d4 {[%emt 0:00:30]} Qe4 {[%emt 0:02:00]} 31. Qc5 {[%emt 0:01:30]} Rg6 {[%emt 0:00:30]} 32. Qc2 {[%emt 0:01:30]} Qg4 {[%emt 0:00:30]} 33. Qe2 {[%emt 0:00:30]} Qe6 {[%emt 0:02:30]} 34. Qf3 {[%emt 0:02:30]} Rf6 {[%emt 0:00:30]} 35. Qh3 {[%emt 0:01:30]} Qe8 {[%emt 0:04:30]} 36. Rf1 {[%emt 0:01:30]} Re6 {[%emt 0:03:30]} 37. Rf3 {[%emt 0:00:30]} Rde7 {[%emt 0:00:30]} 38. Rc3 {[%emt 0:00:30]} Qa8 {[%emt 0:02:30]} 39. Qg3 {[%emt 0:01:30]} Qa4 {[%emt 0:01:30]} 40. Qe1 {[%emt 0:01:30]} Re4 {[%emt 0:01:30]} 41. Qd2 {[%emt 0:30:30]} R4e6 {[%emt 0:34:30]} 42. h3 {[%emt 0:00:30]} Qa8 {[%emt 0:01:30]} 43. Kh2 {[%emt 0:01:30]} Qd8 {[%emt 0:00:30]} 44. Qf2 {[%emt 0:01:30]} Rg6 {[%emt 0:01:30]} 45. Qh4 {[%emt 0:01:30]} Qd6+ {[%emt 0:00:30]} 46. Qf4 {[%emt 0:00:30]} Qd7 {[%emt 0:00:30]} 47. Rg3 {[%emt 0:01:30]} Ree6 {[%emt 0:02:30]} 48. Rxg6 {[%emt 0:01:30]} Rxg6 {[%emt 0:00:30]} 49. Rc5 {[%emt 0:03:30]} Qe6 {[%emt 0:02:30]} 50. e4 {[%emt 0:07:30]} Qa2 {[%emt 0:00:30]} 51. Qf3 {[%emt 0:00:16]} Qb2 {[%emt 0:04:30]} 52. Rf5 {[%emt 0:02:32]} Qa2 {[%emt 0:03:27]} 53. d5 {[%emt 0:00:59]} cxd5 {[%emt 0:00:21]} 54. Rxd5 {[%emt 0:00:35]} Rf6 {[%emt 0:01:13]} 55. Rf5 {[%emt 0:01:49]} Ra6 {[%emt 0:02:03]} 56. Rd5 {[%emt 0:02:58]} Rf6 {[%emt 0:01:03]} 57. Qe3 {[%emt 0:01:59]} Rf2 {[%emt 0:00:54]} 58. Qg3 {[%emt 0:00:58]} Re2 {[%emt 0:04:13]} 59. Rd8+ {[%emt 0:00:42]} Kh7 {[%emt 0:00:07]} 60. Re8 {[%emt 0:01:52]} Qc2 {[%emt 0:01:27]} 61. Qg4 {[%emt 0:01:01]} Rf2 {[%emt 0:00:47]} 62. Re7 {[%emt 0:00:55]} Qd2 {[%emt 0:00:47]} 63. e5 {[%emt 0:01:13]} Rf4 {[%emt 0:01:03]} 64. Rd7 {[%emt 0:01:30]} Qc1 {[%emt 0:00:53]} 65. Qg3 {[%emt 0:00:10]} Rf1 {[%emt 0:00:20]} 66. Qd3+ {[%emt 0:00:15]} g6 {[%emt 0:00:46]} 67. Qd2 {[%emt 0:00:40]} Qa1 {[%emt 0:01:07]} 68. Qe3 {[%emt 0:00:41]} Kg7 {[%emt 0:03:25]} 69. e6 {[%emt 0:00:37]} Re1 {[%emt 0:02:00]} 70. Qd4+ {[%emt 0:00:31]} Qxd4 {[%emt 0:00:14]} 71. Rxd4 {[%emt 0:00:39]} Rxe6 {[%emt 0:00:04]} 72. b5 {[%emt 0:00:39]} Re3 {[%emt 0:00:30]} 73. a4 {[%emt 0:00:02]} Ra3 {[%emt 0:00:17]} 74. Rc4 {[%emt 0:00:45]} Kf6 {[%emt 0:00:15]} 75. h4 {[%emt 0:01:05]} h5 {[%emt 0:00:06]} 76. g4 {[%emt 0:00:40]} hxg4 {[%emt 0:00:43]} 77. Rxg4 {[%emt 0:00:03]} Kf5 {[%emt 0:00:31]} 78. Rc4 {[%emt 0:00:03]} Ke6 {[%emt 0:00:41]} 79. Kg2 {[%emt 0:00:49]} Kd6 {[%emt 0:01:21]} 80. Kf2 {[%emt 0:00:15]} f5 {[%emt 0:01:14]} 81. Ke2 {[%emt 0:02:06]} Kd5 {[%emt 0:00:13]} 82. Rxc7 {[%emt 0:01:45]} Rxa4 {[%emt 0:00:07]} 83. Rg7 {[%emt 0:00:38]} Rxh4 {[%emt 0:00:27]} 84. Rxg6 {[%emt 0:00:13]} Rb4 {[%emt 0:00:05]} 85. b6 {[%emt 0:00:06]} Kc5 {[%emt 0:00:17]} 86. Rf6 {[%emt 0:00:19]} Rxb6 {[%emt 0:00:10]} 87. Rxf5+ {[%emt 0:01:15]} 1/2-1/2

[Event "ESTCC 65 2019"]
[Site "Mali Losinj"]
[Date "2019.09.19"]
[Round "2.24"]
[White "Palsson, Bertil"]
[Black "Strobel, Ferdinand"]
[Result "1/2-1/2"]
[ECO "A80"]
[WhiteElo "1784"]
[BlackElo "1956"]
[Annotator "NA"]
[PlyCount "43"]
[EventDate "2019.09.18"]
[EventType "team-tourn"]
[EventCountry "CRO"]
[SourceTitle "playchess.com"]
[Source "ChessBase"]
[SourceQuality "1"]
[WhiteTeam "Sweden"]
[BlackTeam "Austria"]
[WhiteTeamCountry "SWE"]
[BlackTeamCountry "AUT"]
[TimeControl "40/5400+30:1800+30"]

1. d4 {[%emt 0:00:30]} f5 {[%emt 0:00:30]} 2. e3 {[%emt 0:00:00]} Nf6 {[%emt 0:00:30]} 3. Bd3 {[%emt 0:00:00]} d5 {[%emt 0:01:30]} 4. f4 {[%emt 0:00:30]} e6 {[%emt 0:01:30]} 5. Nf3 {[%emt 0:00:00]} Bd6 {[%emt 0:01:30]} 6. O-O {[%emt 0:00:00]} O-O {[%emt 0:01:30]} 7. Nbd2 {[%emt 0:00:30]} c5 {[%emt 0:03:30]} 8. c3 {[%emt 0:00:30]} Nc6 {[%emt 0:03:30]} 9. Ne5 {[%emt 0:00:30]} Bd7 {[%emt 0:03:30]} 10. Ndf3 {[%emt 0:00:00]} Rc8 {[%emt 0:04:30]} 11. Bd2 {[%emt 0:02:00]} Qe7 {[%emt 0:05:30]} 12. a3 {[%emt 0:00:30]} c4 {[%emt 0:01:30]} 13. Bc2 {[%emt 0:00:30]} b5 {[%emt 0:01:30]} 14. Nxc6 {[%emt 0:05:30]} Bxc6 {[%emt 0:01:30]} 15. Ne5 {[%emt 0:00:30]} a5 {[%emt 0:05:30]} 16. Qe1 {[%emt 0:00:30]} Ne4 {[%emt 0:10:30]} 17. Bxe4 {[%emt 0:00:30]} dxe4 {[%emt 0:04:30]} 18. Qe2 {[%emt 0:01:30]} Bd5 {[%emt 0:01:30]} 19. Qe1 {[%emt 0:00:30]} Bc6 {[%emt 0:00:30]} 20. Qe2 {[%emt 0:00:00]} Bd5 {[%emt 0:00:30]} 21. Qe1 {[%emt 0:00:00]} Bc6 {[%emt 0:00:30]} 22. Qe2 {[%emt 0:00:30]} 1/2-1/2

[Event "ESTCC 65 2019"]
[Site "Mali Losinj"]
[Date "2019.09.19"]
[Round "2.25"]
[White "Peltola, Leo"]
[Black "Grahn, Lars"]
[Result "1/2-1/2"]
[ECO "C48"]
[WhiteElo "1966"]
[BlackElo "2024"]
[Annotator "NA"]
[PlyCount "76"]
[EventDate "2019.09.18"]
[EventType "team-tourn"]
[EventCountry "CRO"]
[SourceTitle "playchess.com"]
[Source "ChessBase"]
[SourceQuality "1"]
[WhiteTeam "Finland"]
[BlackTeam "Sweden"]
[WhiteTeamCountry "FIN"]
[BlackTeamCountry "SWE"]
[TimeControl "40/5400+30:1800+30"]

1. e4 {[%emt 0:00:30]} Nf6 {[%emt 0:00:30]} 2. Nc3 {[%emt 0:00:00]} e5 {[%emt 0:00:00]} 3. Nf3 {[%emt 0:00:00]} Nc6 {[%emt 0:00:00]} 4. Bb5 {[%emt 0:00:30]} Bd6 {[%emt 0:00:30]} 5. O-O {[%emt 0:01:30]} O-O {[%emt 0:00:30]} 6. Re1 {[%emt 0:04:30]} Re8 {[%emt 0:01:30]} 7. Bc4 {[%emt 0:07:30]} h6 {[%emt 0:07:30]} 8. a3 {[%emt 0:06:30]} Bf8 {[%emt 0:04:30]} 9. d4 {[%emt 0:07:30]} exd4 {[%emt 0:11:30]} 10. Nxd4 {[%emt 0:00:30]} Nxd4 {[%emt 0:02:30]} 11. Qxd4 {[%emt 0:00:30]} d6 {[%emt 0:01:30]} 12. h3 {[%emt 0:09:30]} Be6 {[%emt 0:07:30]} 13. Bf4 {[%emt 0:01:30]} Bxc4 {[%emt 0:10:30]} 14. Qxc4 {[%emt 0:00:30]} Nd7 {[%emt 0:01:30]} 15. Rad1 {[%emt 0:11:30]} Nb6 {[%emt 0:06:30]} 16. Qd3 {[%emt 0:00:30]} Qf6 {[%emt 0:01:30]} 17. Qg3 {[%emt 0:03:30]} g5 {[%emt 0:11:30]} 18. Bc1 {[%emt 0:04:30]} Bg7 {[%emt 0:03:30]} 19. Nb5 {[%emt 0:05:30]} Re7 {[%emt 0:02:30]} 20. Qd3 {[%emt 0:06:30]} a6 {[%emt 0:02:30]} 21. Nc3 {[%emt 0:03:30]} Rae8 {[%emt 0:00:30]} 22. Re3 {[%emt 0:05:57]} Qg6 {[%emt 0:01:30]} 23. b3 {[%emt 0:06:38]} Be5 {[%emt 0:04:06]} 24. a4 {[%emt 0:02:56]} c6 {[%emt 0:04:11]} 25. a5 {[%emt 0:02:09]} Nd7 {[%emt 0:00:59]} 26. Ba3 {[%emt 0:00:53]} Re6 {[%emt 0:03:48]} 27. Ne2 {[%emt 0:03:45]} Nf6 {[%emt 0:05:30]} 28. Nd4 {[%emt 0:01:40]} Bxd4 {[%emt 0:01:18]} 29. Qxd4 {[%emt 0:00:03]} c5 {[%emt 0:01:19]} 30. Qd3 {[%emt 0:00:26]} Nxe4 {[%emt 0:00:40]} 31. f3 {[%emt 0:00:29]} Ng3 {[%emt 0:00:29]} 32. Qxg6+ {[%emt 0:00:07]} fxg6 {[%emt 0:00:01]} 33. Red3 {[%emt 0:00:25]} Nf5 {[%emt 0:01:21]} 34. R1d2 {[%emt 0:01:53]} Kf7 {[%emt 0:00:00]} 35. Bb2 {[%emt 0:00:10]} Rd8 {[%emt 0:00:00]} 36. Kf2 {[%emt 0:00:24]} Ne7 {[%emt 0:01:39]} 37. Ba3 {[%emt 0:00:10]} Nf5 {[%emt 0:00:24]} 38. Bxc5 {[%emt 0:00:25]} Rc8 {[%emt 0:01:01]} 1/2-1/2